Cogmind - Beta 13 @@@ ROGUE MODE // 2024.04.02 @ 13:47:10 Player: TheSecutor Result: Destroyed by Y-45 Defender with Heavy Assault Rifle Performance ------------- Evolutions (1) 500 Regions Visited (2) 400 Robots Destroyed (24) 120 Value Destroyed (621) 621 Prototype IDs (2) 40 Alien Tech Used (0) 0 Bonus (16) 16 TOTAL SCORE: 1697 Bonus ------- High Alert Combat Kills 16 Cogmind --------- Core Integrity 0/400 Matter 262/300 Energy 265/265 System Corruption 0% Temperature Cool (0) Movement Walking (190) Ox1 Location -9/Materials Parts ------- > --- POWER (1) -------- Improved Ion Engine > --- PROPULSION (2) --- Aluminum Leg Aluminum Leg > --- UTILITY (4) ------ Large Storage Unit Structural Scanner Visual Processing Unit Signal Interpreter > --- WEAPON (2) ------- Heavy Assault Rifle Heavy Assault Rifle > --- INVENTORY (15) --- Aluminum Leg Aluminum Leg Weight Redist. System Sensor Array Beam Rifle Peak State ------------ > --- POWER ------------ Light Nuclear Core > --- PROPULSION ------- Armored Wheel Armored Wheel > --- UTILITY ---------- Medium Matter Pod Visual Processing Unit Signal Interpreter Improved Targeting Computer > --- WEAPON ----------- Heavy Assault Rifle Heavy Assault Rifle > --- INVENTORY -------- Improved Ion Engine Aluminum Leg Aluminum Leg Heavy Assault Rifle Heavy Assault Rifle [Rating: 17] Favorites ----------- Power Light Nuclear Core Engine Improved Ion Engine Power Core Light Nuclear Core Propulsion Armored Wheel Leg Aluminum Leg Wheel Armored Wheel Utility Improved Targeting Computer Device Structural Scanner Storage Large Storage Unit Processor Improved Targeting Computer Weapon Heavy Assault Rifle Ballistic Gun Heavy Assault Rifle Launcher Grenade Launcher Build | -11 -10 -9 ------- Run | Yrd Mat Mat Slots Evolved 2 | . . 2 Power . | . . . Propulsion . | . . . Utility 2 | . . 2 Weapon . | . . . Parts Attached 26 | 5 10 11 Power 3 | 1 1 1 Engine 2 | 1 . 1 Core 1 | . 1 . Reactor . | . . . Propulsion 6 | 2 2 2 Treads . | . . . Leg 2 | . . 2 Wheel 4 | 2 2 . Hover . | . . . Flight . | . . . Utility 7 | . 3 4 Device 1 | . . 1 Storage 2 | . . 2 Processor 4 | . 3 1 Hackware . | . . . Protection . | . . . Artifact . | . . . Weapon 10 | 2 4 4 Energy Gun . | . . . Energy Cannon . | . . . Ballistic Gun 8 | 2 2 4 Ballistic Cannon . | . . . Launcher 2 | . 2 . Special Weapon . | . . . Impact Weapon . | . . . Slashing Weapon . | . . . Piercing Weapon . | . . . Special Melee Weapon . | . . . Unidentified Prototypes . | . . . Parts Lost 5 | . . 5 Power 1 | . . 1 Propulsion 2 | . . 2 Utility . | . . . Weapon 2 | . . 2 Highest Loss Streak 5 | . . 5 To Critical Strikes . | . . . Average Slot Usage (%) 94 | . 96 93 Engine 4 | . 4 4 Core 6 | . 9 5 Leg 6 | . . 10 Wheel 16 | . 28 10 Device 1 | . . 2 Storage 7 | . . 11 Processor 27 | . 26 27 Ballistic Gun 20 | . 18 21 Launcher 2 | . 7 . Naked Turns . | . . . Heaviest Build 34 | 6 11 34 Greatest Support 24 | 20 24 24 Greatest Overweight (x) 8 | . . 8 Average Overweight (x) . | . . . Largest Inventory Capacity 15 | 5 5 15 Average Capacity 9 | 5 5 12 Most Carried 5 | 5 5 5 Average Carried 4 | 2 4 3 Final Capacity 15 | 5 5 15 Final Carried 5 | 5 5 5 Class Distribution -------------------- 100% | Mutant Dominant Class ---------------- Mutant | -10/Materials Mutant | -9/Materials Resources | -11 -10 -9 ----------- Run | Yrd Mat Mat Matter Collected 728 | 258 117 353 Remotely . | . . . Salvage Created 750 | 50 135 565 Parts 62 | 3 14 45 Haulers Intercepted . | . . . Recyclers Shooed . | . . . Parts Field Recycled . | . . . Retrieved Matter . | . . . Parts Self-Destructed . | . . . Prevented . | . . . Kills | -11 -10 -9 ------- Run | Yrd Mat Mat Combat Hostiles Destroyed 18 | 1 3 14 Guns 18 | 1 3 14 Classes Destroyed 6 | 1 1 4 Worker 2 | . . 2 Builder 1 | . . 1 Watcher 3 | . 1 2 Swarmer 6 | . . 6 Grunt 7 | 1 3 3 Sentry 5 | . . 5 Best Kill Streak 13 | 1 2 13 Combat Bots Only 5 | 1 2 5 Max Kills in Single Turn 2 | 1 1 2 Gunslinging 1 | . . 1 Exploded . | . . . Melee . | . . . Uniques/NPCs Destroyed . | . . . Combat | -11 -10 -9 -------- Run | Yrd Mat Mat Hostile Shots Fired 139 | 2 8 129 Missed 42 | . 4 38 Damage Taken 1173 | 23 72 1078 Core 424 | 12 . 412 Absorbed by Shields . | . . . Core Remaining (%) 95 | 95 95 . Volleys Fired 57 | 2 11 44 Largest 2 | 2 2 2 Hottest 60 | 40 60 46 Shots Fired 110 | 4 22 84 Gun 106 | 4 18 84 Cannon . | . . . Launcher 4 | . 4 . Special . | . . . Kinetic 106 | 4 18 84 Thermal . | . . . Explosive 4 | . 4 . Electromagnetic . | . . . Robot Hit Streak 14 | 2 9 14 Robot Miss Streak 3 | 1 2 3 Penetration Max . | . . . Secondary Targets 1 | . . 1 Max Gunslinging Chain 1 | . . 1 Shots Hit Robots 70 | 2 14 54 Core Hits 36 | 2 8 26 Critical Kills 1 | . 1 . Critical Parts Destroyed . | . . . Critical Strikes 1 | . 1 . Destroy 1 | . 1 . Melee Attacks . | . . . Impact . | . . . Slashing . | . . . Piercing . | . . . Sneak Attacks . | . . . Combat Hostiles . | . . . Follow-up Attacks . | . . . Damage Inflicted 1186 | 20 260 906 Guns 1073 | 20 160 893 Cannons . | . . . Explosions 100 | . 100 . Melee . | . . . Ramming 13 | . . 13 Kinetic 1073 | 20 160 893 Thermal . | . . . Explosive 100 | . 100 . Electromagnetic . | . . . Impact . | . . . Slashing . | . . . Piercing . | . . . Highest Corruption . | . . . Average Corruption . | . . . Corruption Purged . | . . . Corruption Blocked . | . . . Overload Shots . | . . . Overflow Damage 72 | . 15 57 Projectiles . | . . . Explosions 72 | . 15 57 Melee . | . . . Knockbacks . | . . . Impact . | . . . Kinetic . | . . . Secondary . | . . . Self-Inflicted Damage 82 | . . 82 Shots 2 | . . 2 Rammed . | . . . Targets Rammed 2 | . . 2 Kicked 2 | . . 2 Crushed . | . . . Highest Temperature 24 | 12 9 24 Average Temperature 6 | 9 6 6 Received Heat Transfer 258 | 12 30 216 Siege Activations . | . . . Robots Corrupted . | . . . Combat Hostiles . | . . . Parts Fried . | . . . Impact Corruptions . | . . . Robots Melted . | . . . Combat Hostiles . | . . . Parts Melted . | . . . Heat Transferred . | . . . Parts Sabotaged . | . . . Parts Stolen . | . . . Parts Stripped . | . . . Power Chain Reactions . | . . . Alert | -11 -10 -9 ------- Run | Yrd Mat Mat Peak Influence 579 | 20 140 579 Initial 59 | . 13 59 Average 223 | 3 94 324 Maximum Alert Level 2 | . . 2 Low Security (%) 66 | 100 100 43 Level 1 14 | . . 24 Level 2 18 | . . 31 Level 3 . | . . . Level 4 . | . . . Level 5 . | . . . High Security . | . . . Max Security . | . . . Squads Dispatched 1 | . . 1 Investigation . | . . . Extermination . | . . . Reinforcement 1 | . . 1 Assault . | . . . Garrison . | . . . Intercept . | . . . Searches Triggered . | . . . Construction Impeded . | . . . Haulers Reinforced . | . . . Active Scanning Responses . | . . . Cargo Convoy Interrupts . | . . . Stealth | -11 -10 -9 --------- Run | Yrd Mat Mat Distress Signals 2 | . . 2 Communications Jammed . | . . . Distress Signals . | . . . Times Spotted 26 | 1 5 20 Peak Tracking Total 10 | 1 2 10 Tactical Retreats 2 | . . 2 Traps | -11 -10 -9 ------- Run | Yrd Mat Mat Traps Triggered 1 | . 1 . Indirectly . | . . . Trap Hack Attempts . | . . . Triggered . | . . . Disarmed . | . . . Reprogrammed . | . . . Reused . | . . . Traps Extracted . | . . . Installed . | . . . Triggered . | . . . Machines | -11 -10 -9 ---------- Run | Yrd Mat Mat Machines Disabled 3 | . . 3 Max in Single Turn 3 | . . 3 Machines Repaired . | . . . Machines Dismantled . | . . . Machines Sabotaged . | . . . Overloaded Fab Kills . | . . . Hacking | -11 -10 -9 --------- Run | Yrd Mat Mat Machines Accessed 2 | . 2 . Terminals 2 | . 2 . Fabricators . | . . . Repair Stations . | . . . Recycling Units . | . . . Scanalyzers . | . . . Garrison Access . | . . . Total Hacks 4 | . 4 . Successful 3 | . 3 . Failed 1 | . 1 . Catastrophic . | . . . Database Lockouts . | . . . Manual . | . . . Terminals 4 | . 4 . Fabricators . | . . . Repair Stations . | . . . Recycling Units . | . . . Scanalyzers . | . . . Garrison Access . | . . . Terminal Hacks 3 | . 3 . Record 1 | . 1 . Prototype ID Bank 1 | . 1 . Zone Layout 1 | . 1 . Fabricator Hacks . | . . . Repair Station Hacks . | . . . Recycling Unit Hacks . | . . . Scanalyzer . | . . . Garrison Access Hacks . | . . . Unauthorized Hacks . | . . . Terminals . | . . . Fabricators . | . . . Repair Stations . | . . . Recycling Units . | . . . Scanalyzers . | . . . Garrison Access . | . . . Data Cores Recovered . | . . . Used . | . . . Hacking Detections . | . . . Full Trace Events . | . . . Feedback Events . | . . . Feedback Blocked . | . . . Robot Schematics Acquired . | . . . Robots Built . | . . . Authchips . | . . . Time . | . . . Total Robot Build Rating . | . . . Part Schematics Acquired . | . . . Parts Built . | . . . Authchips . | . . . Time . | . . . Total Part Build Rating . | . . . Parts Repaired . | . . . Time . | . . . Parts Recycled . | . . . Recycled Matter . | . . . Retrieved Matter . | . . . Retrieved Components . | . . . Parts Scanalyzed . | . . . Part Schematics Acquired . | . . . Parts Damaged . | . . . Bothacking | -11 -10 -9 ------------ Run | Yrd Mat Mat Used RIF Installer . | . . . Robots Hacked . | . . . Non-combat . | . . . Combat . | . . . Robot Hacks Applied . | . . . Relay Couplers Released . | . . . Fabnet Peak Effective % . | . . . Robots Rewired . | . . . Allies Hacked . | . . . Hacks Repelled . | . . . Allies | -11 -10 -9 -------- Run | Yrd Mat Mat Total Allies . | . . . Largest Group . | . . . Highest-Rated Group . | . . . Highest-Rated Ally . | . . . Total Orders . | . . . Ally Attacks . | . . . Total Damage . | . . . Kills . | . . . Allies Corrupted . | . . . Allies Melted . | . . . Intel | -11 -10 -9 ------- Run | Yrd Mat Mat Robot Analysis Total . | . . . Derelict Logs Recovered . | . . . Drone Launches . | . . . Drone Recoveries . | . . . Exploration | -11 -10 -9 ------------- Run | Yrd Mat Mat Turns Passed 832 | 77 258 497 Spaces Moved 549 | 77 221 251 Core 19 | 17 . 2 Treads . | . . . Legs 98 | . . 98 Wheels 432 | 60 221 151 Hover . | . . . Flight . | . . . Fastest Speed 50 | 50 80 90 Average Speed 108 | 73 89 135 Slowest Speed 450 | 80 90 450 Overloaded Moves . | . . . Propulsion Burnouts . | . . . Robots Hopped . | . . . Cave-ins Triggered . | . . . Exploration Rate (%) 24 | 5 44 25 Regions Visited 2 Branch Regions . Pre-discovered Areas . | . . . Known Exits Taken . | . . . Unknown Exits Taken 2 | 1 1 . Scrap Searched . | . . . Spaces Dug . | . . . Terrain Destroyed 55 | . 18 37 Melee . | . . . Projectile . | . . . AOE 55 | . 18 37 Terrain Rammed . | . . . Walls Destroyed . | . . . Machines Disabled . | . . . Actions | -11 -10 -9 --------- Run | Yrd Mat Mat Total 681 | 93 263 325 Wait . | . . . Move 547 | 76 220 251 Hop . | . . . Pick Up 28 | 10 9 9 Fast Attach 10 | . 3 7 Attach 9 | 5 1 3 Detach . | . . . Swap 7 | . 6 1 Drop 21 | . 13 8 Fire 57 | 2 11 44 Melee . | . . . Ram . | . . . Kick 2 | . . 2 Crush . | . . . Escape Stasis . | . . . Rewire . | . . . Trap . | . . . Miscellaneous . | . . . Route ------- -11/Scrapyard -10/Materials -9/Materials History --------- Turn | Location | Event 2 | -11/Scrapyard | Met Revision 17 57 | -11/Scrapyard | Discovered new exit (range 8) 78 | -11/Scrapyard | Entered Materials 235 | -10/Materials | Discovered new exit (range 10) 317 | -10/Materials | Build established: Mutant 336 | -10/Materials | Entered another Materials area 336 | -9/Materials | Evolved 2 slots: Utility x2 589 | -9/Materials | Core integrity fell below 50% 600 | -9/Materials | Core integrity fell below 20% 636 | -9/Materials | Lost 5 parts (1p2n2w) 833 | -9/Materials | Destroyed by Y-45 Defender with Heavy Assault Rifle Last Messages --------------- R-06 Scavenger collects Aluminum Leg. Kicked U-05 Engineer. K-01 Serf collects debris. U-05 Engineer builds a Wall. Acquired Aluminum Leg. Acquired 20 matter. U-05 Engineer lays Concrete. R-06 Scavenger collects Flight Unit. U-05 Engineer lays Concrete. R-06 Scavenger collects Lgt. Ion Engine. Kicked U-05 Engineer out of the way. Acquired Structural Scanner. Discarded Imp. Targeting Computer. Acquired Weight Redist. System. W-16 Scout sends out distress signal. W-16 Scout destroyed. Acquired 18 matter. R-06 Scavenger collects Hover Unit. Acquired Sensor Array. K-01 Serf collects debris. Map ----- +----------------------------------------------------+ | ?????????????????????????????????????????????????? | | ???????????????#########?????????????????????????? | | ???????????????#########?????????????????????????? | | ??????????????? ##?????????????????????????? | | ????????????????? ##?????????????????????????? | | ????????????????? # ?????????????????????????? | | ?????????????????? ##?????????????????????????? | | ????????????????? ##?????????????????????????? | | ?????????????????## ##?????????????????????????? | | ?????????????????## ##?????????????????????????? | | ################# ##?????????????????????????? | | ################### ##?????????????????????????? | | ##?????????????????????????? | | ######### ######## ??????????????????? | | ######### ######## ??????????????????? | | # # # ??????????????????? | | # # # ??????????????????? | | + + # ??????????????????? | | # ####+## # # ??????????????????? | | +######## ## # # # ??????????????????? | | % ###### ##??? + # ##??????????????????? | | ###### ##??? ####+###+############ ???????????? | | + ## ?? # ########### ???????????? | | ######/## ?? # """ """ # ?T" # ???????????? | | ## # ?? + """ """ # # ???????????? | | ## # ?? # """ """@/ ! Y + ???????????? | | ## ! # ?? # # ] # ???????????? | | ## !! # ?? # ########### ???????????? | | ##### ! ##??## + ???????????? | | #############??## ##?????????????????????? | | # ####??#############?????????????????????? | | # #?????#############?????????????????????? | | # #???????????????????????????????????????? | | # #???????????????????????????????????????? | | # #???????????????????????????????????????? | | # #???????????????????????????????????????? | | + #???????????????????????????????????????? | | # #???????????????????????????????????????? | | # #???????????????????????????????????????? | | #####+####???????????????????????????????????????? | | ???# #########?????????????????????????????????? | | ???# # ?????????????????????????????????? | | ???# # ?????????????????????????????????? | | ???# # """ """?????????????????????????????????? | | ???# # """ """ #???????????????????????????????? | | ???# # """ """ #???????????????????????????????? | | ???# # ##########??????????????????????? | | ???# + ## #??????????????????????? | | ???# # ## = #??????????????????????? | | ??## ############ #??????????????????????? | +----------------------------------------------------+ Best States ------------- Heat Dissipation 28 Energy Generation 14 Energy Capacity 265 Matter Stores 302 Matter Capacity 400 Sight Range 18 Terrain Scan Density 10 Evasion (%) 50 Targeting Accuracy 12 Item Schematics ----------------- None Robot Schematics ------------------ None Fabricated ------------ Nothing Alien Tech Used ----------------- None Achievements -------------- None Challenges ------------ None Game ------ Seed CoordinationNetworkWell Manual? 0 Play Time 00:13:33 Cumulative 1.3 hours Start 2024.04.02 @ 13:28:47 End 2024.04.02 @ 13:47:10 Sessions 1 Manual Loads 0 Difficulty Rogue Special Mode None Game No. 2 Rogue 2 Adventurer 0 Explorer 0 Win Type - Total 0 Types 0/0/0/0/0/0/0/0/0 Lore% 1 Gallery% 6 Achievement% 5 Wizard Run 0 Options --------- Layout 1 ASCII 0 Keyboard 0 Movement Mouse Keybinds 0 Fullscreen 1 Font 24/Smallcaps Map View 50x35 Zoom Use 0% Tactical HUD 0 Map Filters NONE Filters NONE Steam 1 RUN: 11d48c3a-f380-4a6b-8d1c-7723a2e7505c